bitfinex/quotes_ETHUSD_20220219
["timestamp","ask_amount","ask_price","bid_price","bid_amount"]
[1645312525676,1.13309837,2751.7,2751.5,0.51511982]
[1645312525873,1.13638167,2751.7,2751.5,0.51511982]
[1645312526874,1.13309837,2751.7,2751.5,0.51511982]
[1645312527072,1.13638174,2751.7,2751.5,0.51511982]
[1645312527273,1.43638174,2751.7,2751.5,0.51511982]
[1645312527678,5.93638174,2751.7,2751.5,0.51511982]
[1645312527876,2.43638174,2751.7,2751.5,0.51511982]
[1645312528178,0.90946,2751.6,2751.5,0.51511982]
[1645312528376,1.20946,2751.6,2751.5,0.51511982]
[1645312528829,2.20946,2751.6,2751.5,0.51511982]
[1645312529429,2.20946,2751.6,2751.5,2.21511982]
[1645312530829,1.3,2751.6,2751.5,2.21511982]
[1645312531230,1.09022103,2752.0,2751.5,2.21511982]
[1645312531429,1.0,2751.9,2751.5,2.21511982]
[1645312531636,1.61222103,2752.0,2751.5,2.21511982]
[1645312532672,0.90932,2751.9,2751.5,2.21511982]
[1645312533074,1.20932,2751.9,2751.5,2.21647526]
[1645312533271,0.3,2751.8,2751.5,2.21647526]
[1645312534074,0.3,2751.8,2751.5,2.21511982]
[1645312534278,0.30328329,2751.8,2751.5,2.21840353]
[1645312534676,0.30328329,2751.8,2751.5,2.00840353]
[1645312535276,0.3,2751.8,2751.5,2.00511982]
[1645312535474,0.3,2751.8,2751.5,2.00840353]
[1645312535475,0.30328329,2751.8,2751.5,2.00840353]
[1645312535876,0.30328329,2751.8,2751.7,0.30511982]
[1645312536129,0.00328329,2751.8,2751.7,1.84974207]
[1645312536327,0.90932,2751.9,2751.7,1.84974207]
[1645312536531,0.90932,2751.9,2751.7,0.30511982]
[1645312536730,0.9126033,2751.9,2751.7,0.30511982]
[1645312537126,1.8220333,2751.9,2751.7,0.30511982]
[1645312537526,1.81875,2751.9,2751.7,0.30511982]
[1645312537928,1.82203327,2751.9,2751.7,0.30511982]
[1645312538226,2.73153177,2751.9,2751.7,0.30511982]
[1645312538827,2.7282485,2751.9,2751.7,0.30511982]
[1645312539125,2.73153177,2751.9,2751.7,0.30511982]
[1645312539975,2.7282485,2751.9,2751.7,0.30511982]
[1645312540172,2.73153177,2751.9,2751.7,0.30511982]
[1645312540571,0.91260327,2751.9,2751.7,0.30511982]
[1645312541174,0.90932,2751.9,2751.6,0.30511982]
[1645312541572,0.91260327,2751.9,2751.6,0.30511982]
[1645312541970,0.91260327,2751.9,2751.8,0.30511982]
[1645312542370,0.90932,2751.9,2751.8,0.30511982]
[1645312545725,1.20932,2751.9,2751.8,0.30511982]
[1645312545925,2.20932,2751.9,2751.8,0.30511982]
[1645312546125,1.20932,2751.9,2751.8,0.30511982]
[1645312546328,2.20932,2751.9,2751.8,0.30511982]
[1645312547674,5.29841758,2751.9,2751.8,0.30511982]
[1645312547872,5.82041758,2751.9,2751.8,0.30511982]
[1645312548675,1.0,2751.8,2751.5,1.70310608]
[1645312548874,4.16038,2751.7,2751.5,1.70310608]
[1645312549079,4.16038,2751.7,2750.9,0.1816]
[1645312549080,6.0,2751.6,2750.9,0.1816]
[1645312549277,5.2116467,2751.9,2750.4,4.46280529]
[1645312549278,0.96300664,2751.1,2750.4,4.46280529]
[1645312549475,0.96300664,2751.1,2750.5,1.54511156]
[1645312549476,0.522,2751.0,2750.5,1.54511156]
[1645312549677,0.522,2751.0,2750.6,1.54511156]
[1645312549880,0.522,2751.0,2750.7,1.54511156]
[1645312550075,0.522,2751.0,2750.2,3.5]
[1645312550278,1.4318,2751.0,2750.3,1.54515706]
[1645312550474,1.4318,2751.0,2750.4,3.5]
[1645312550675,2.34161,2751.0,2750.5,1.54515706]
[1645312550876,2.34161,2751.0,2750.6,1.54515706]
[1645312551132,0.3,2750.9,2750.2,4.33679928]
[1645312551433,0.3,2750.9,2750.3,1.54515932]
[1645312551434,0.522,2750.8,2750.3,1.54515932]
[1645312551832,0.3,2750.9,2750.5,5.0]
[1645312552033,1.26300664,2751.1,2750.6,1.54515932]
[1645312552232,0.96300664,2751.1,2750.6,5.04515932]
[1645312552437,0.96300664,2751.1,2750.7,1.54515932]
[1645312552933,0.90961,2751.0,2750.7,1.54515932]
[1645312553134,0.90961,2751.0,2750.8,1.54515932]
[1645312553333,0.90961,2751.0,2750.9,1.54515932]
[1645312553835,0.90961,2751.0,2750.8,1.54515932]
[1645312554034,0.90961,2751.0,2750.7,1.70328125]
[1645312554233,0.90961,2751.0,2750.8,1.54497466]
[1645312554634,0.90961,2751.0,2750.3,3.5]
[1645312554875,0.3,2750.9,2750.7,0.00328125]
[1645312555675,0.3,2750.9,2750.5,1.54503755]
[1645312555877,0.3,2750.9,2750.7,0.00328128]
[1645312556880,0.3,2750.9,2750.4,1.54503755]
[1645312557077,0.3,2750.9,2750.7,0.00304511]
[1645312557881,0.3,2750.9,2750.7,1.54808266]
[1645312558078,0.3,2750.9,2750.3,3.5]
[1645312558280,0.3,2750.9,2750.7,0.00304511]
[1645312558481,0.90961,2751.0,2750.7,0.00304511]
[1645312558728,0.91578883,2751.5,2750.7,0.00304511]
[1645312558729,0.90953,2751.3,2750.7,0.00304511]
[1645312558925,0.90953,2751.3,2750.7,8.50304511]
[1645312559127,0.90953,2751.3,2750.8,1.5450319]
[1645312559327,0.90953,2751.3,2751.1,5.0]
[1645312559527,1.00618883,2751.5,2751.1,5.0]
[1645312559528,0.00618883,2751.5,2751.1,5.0]
[1645312559734,0.00618883,2751.5,2751.4,5.0]
[1645312559927,5.1196,2752.5,2751.4,10.04475178]
[1645312559928,0.00618883,2751.6,2751.4,10.04475178]
[1645312560231,5.6416,2752.5,2751.4,5.0]
[1645312560232,0.00618883,2752.0,2751.4,5.0]
[1645312560425,3.5,2752.3,2751.4,5.0]
[1645312560626,0.00618883,2752.2,2751.4,5.0]
[1645312560826,1.18618378,2752.1,2751.4,0.00304476]
[1645312561228,1.18618378,2752.1,2751.4,0.96661787]
[1645312561229,0.00618883,2752.0,2751.4,0.96661787]
[1645312561626,0.00618883,2752.0,2751.4,0.96357311]
[1645312561826,0.00618883,2752.0,2751.6,0.00306051]
[1645312562028,0.00618883,2752.0,2751.6,5.00306051]
[1645312562884,0.00618883,2752.0,2751.6,5.0]
[1645312563080,0.00618883,2752.0,2751.7,0.00306046]
[1645312563280,1.79237261,2752.1,2751.7,0.00306046]
[1645312563980,1.79237261,2752.1,2751.6,5.0]
[1645312564479,1.79237261,2752.1,2751.8,0.00306041]
[1645312564679,0.00618883,2752.1,2751.8,0.00306041]
[1645312564883,0.00618883,2752.2,2751.8,0.00306041]
[1645312565080,1.91539883,2752.3,2751.8,0.00306041]
[1645312565281,2.21539883,2752.3,2751.5,1.54452311]
[1645312565483,2.21539883,2752.3,2751.9,0.00305928]
[1645312565982,4.33411883,2752.3,2751.9,0.00305928]
[1645312566228,0.87491708,2752.0,2751.9,0.00305928]
[1645312566530,2.08429708,2752.0,2751.4,1.1894]
[1645312566730,2.09048591,2752.0,2751.4,1.1894]
[1645312566930,0.522,2751.9,2751.4,1.1894]
[1645312567130,0.522,2751.9,2750.8,5.1817]
[1645312567332,0.00618883,2751.8,2751.1,1.54480262]
[1645312567628,0.52818883,2751.8,2751.1,1.54480262]
[1645312567829,0.52818883,2751.8,2751.3,0.00284813]
[1645312567830,0.90963,2751.7,2751.3,0.00284813]
[1645312568036,1.20963,2751.7,2751.3,0.00284813]
[1645312568229,2.50963,2751.7,2751.3,0.00284813]
[1645312568631,1.1444604,2751.5,2751.3,0.00284813]
[1645312568833,1.4444604,2751.5,2750.9,6.1877]
[1645312569032,1.4444604,2751.5,2751.0,1.54483887]
[1645312569232,2.3539404,2751.5,2751.4,0.00285528]
[1645312569632,1.20948,2751.5,2751.4,0.00285528]
[1645312570086,1.20948,2751.5,2751.0,6.54483887]
[1645312570288,1.20948,2751.5,2751.3,0.0028553]
[1645312570690,2.36472296,2751.5,2751.3,0.0028553]
[1645312571287,3.36472296,2751.5,2751.1,1.54483887]
[1645312571485,2.36472296,2751.5,2751.3,0.00286936]
[1645312571687,1.0,2751.4,2751.3,0.00286936]
[1645312571985,3.36472296,2751.5,2751.3,0.00286936]
[1645312572185,2.36472296,2751.5,2751.3,0.00286936]
[1645312572388,1.0,2751.4,2751.0,1.54472126]
[1645312572587,2.36472296,2751.5,2751.1,1.54478643]
[1645312572588,3.36472296,2751.5,2751.1,1.54478643]
[1645312572786,3.36472296,2751.5,2751.3,0.00286889]
[1645312572787,2.36472296,2751.5,2751.3,0.00286889]
[1645312572992,1.0,2751.4,2751.3,0.00286889]
[1645312573189,2.36472296,2751.5,2751.3,0.00286889]
[1645312573190,3.36472296,2751.5,2751.3,0.00286889]
[1645312573486,2.36472296,2751.5,2751.3,0.00286889]
[1645312573726,1.0,2751.4,2751.0,1.5447704]
[1645312573928,2.36472296,2751.5,2751.3,0.00286889]
[1645312574926,2.36472296,2751.5,2751.2,5.0]
[1645312575126,2.36472296,2751.5,2751.3,0.00286796]
[1645312576128,2.36472296,2751.5,2751.0,1.54472578]
[1645312576328,2.36472296,2751.5,2751.3,0.00286752]
[1645312577377,2.36472296,2751.5,2751.0,1.54472578]
[1645312577578,2.36472296,2751.5,2751.3,0.00286752]
[1645312577978,3.27432296,2751.5,2751.3,0.00286752]
[1645312578281,1.0,2751.4,2751.3,0.00286752]
[1645312578477,1.0,2751.4,2751.0,1.54472578]
[1645312578677,1.0,2751.4,2751.3,0.0028676]
[1645312579077,2.06472296,2751.5,2751.3,0.0028676]
[1645312579279,1.15524296,2751.5,2751.3,5.0028676]
[1645312579780,1.15524296,2751.5,2751.3,5.0]
[1645312579978,1.15524296,2751.5,2751.3,5.00286766]
[1645312580783,1.15524296,2751.5,2751.4,1.54463955]
[1645312580977,1.15524296,2751.5,2751.3,5.0]
[1645312581234,1.15524296,2751.5,2751.3,5.00286766]
[1645312581835,1.15524296,2751.5,2751.3,5.00139727]
[1645312582035,2.06470296,2751.5,2751.0,4.99852961]
[1645312582237,2.06470296,2751.5,2751.3,0.00286765]
[1645312582436,2.36470296,2751.5,2751.3,0.00286765]
[1645312584438,2.36470296,2751.5,2751.1,1.54475171]
[1645312584640,2.36470296,2751.5,2751.3,0.00286765]
[1645312585575,2.36470296,2751.5,2751.1,1.54470521]
[1645312585777,1.819,2751.7,2751.4,4.99852961]
[1645312585981,0.00618883,2751.8,2751.5,1.54470521]
[1645312586177,0.00618883,2751.8,2751.6,4.99852961]
[1645312586378,1.00618883,2752.0,2751.6,4.99852961]
[1645312586877,1.98209947,2752.0,2751.6,4.99852961]
[1645312587078,1.98209947,2752.0,2751.7,0.00286748]
[1645312587282,0.90933,2751.9,2751.7,0.00286748]
[1645312588078,0.90933,2751.9,2751.4,1.54462266]
[1645312588281,0.3,2751.8,2751.7,0.00286748]
[1645312589327,1.81904,2751.7,2751.4,1.5446341]
[1645312589527,1.81904,2751.7,2751.6,0.00286749]
[1645312589728,2.81904,2751.7,2751.6,0.00286749]
[1645312590327,3.72858,2751.7,2751.6,0.00286749]
[1645312590527,3.72858,2751.7,2751.3,4.99852961]
[1645312590731,3.72858,2751.7,2751.5,0.00286753]
[1645312590933,1.81903,2751.6,2751.5,0.00286753]
[1645312591630,2.81903,2751.6,2751.3,1.54469497]
[1645312591831,3.11903,2751.6,2751.4,0.00286757]
[1645312592229,3.06903,2751.6,2751.4,0.00286757]
[1645312592878,3.06903,2751.6,2750.9,1.54478851]
[1645312593077,0.89206855,2751.2,2750.9,1.54478851]
[1645312593282,0.90959,2751.1,2750.9,1.54478851]
[1645312593876,0.90959,2751.1,2750.9,5.04478851]
[1645312594077,0.90959,2751.1,2751.0,1.54478851]
[1645312594278,0.90959,2751.1,2750.9,1.54765632]
[1645312595179,0.90959,2751.1,2750.9,1.54478851]
[1645312595580,0.89206855,2751.2,2751.1,0.73816974]
[1645312595978,0.89206855,2751.2,2751.1,2.28295825]
[1645312596635,1.80163855,2751.2,2751.1,2.28295825]
[1645312596834,0.90957,2751.2,2751.1,2.28295825]
[1645312599140,1.2495,2751.7,2751.1,5.78295825]
[1645312599340,0.00618883,2751.8,2751.2,1.54478851]
[1645312599536,0.00618883,2751.8,2751.7,4.99852961]
[1645312599737,1.0,2751.9,2751.3,3.5]
[1645312599983,0.00618883,2751.8,2751.4,1.5446182]
[1645312600184,0.00618883,2751.8,2751.5,1.5446182]
[1645312600382,0.00618883,2751.8,2751.5,0.00286757]
[1645312600583,0.99991844,2751.8,2751.5,0.00286757]
[1645312600781,0.99991844,2751.8,2751.5,1.54751905]
[1645312600782,1.29991844,2751.8,2751.5,1.54751905]
[1645312601379,1.29991844,2751.8,2751.4,4.99852961]
[1645312601587,1.29991844,2751.8,2751.5,0.00286755]
[1645312601780,1.29991844,2751.8,2751.5,1.54752492]
[1645312602380,1.29991844,2751.8,2751.4,4.99852961]
[1645312602581,1.29991844,2751.8,2751.5,1.5446675]
[1645312602780,1.29991844,2751.8,2751.5,1.54753505]
[1645312603728,1.29991844,2751.8,2751.5,1.5446675]
[1645312603930,1.29991844,2751.8,2751.5,1.54753504]
[1645312604931,1.29991844,2751.8,2751.5,1.5446675]
[1645312605134,1.29991844,2751.8,2751.5,1.54753503]
[1645312606133,1.29991844,2751.8,2751.5,1.5446675]
[1645312606335,1.29991844,2751.8,2751.5,1.54753503]
[1645312607376,1.29991844,2751.8,2751.5,1.5446675]
[1645312607577,1.29991844,2751.8,2751.5,1.54753503]
[1645312607779,0.30618883,2751.8,2751.5,1.54753503]
[1645312608183,0.00618883,2751.8,2751.5,1.54753503]
[1645312608484,0.00618883,2751.8,2751.7,4.99852961]
[1645312608680,2.325,2752.5,2751.7,6.54319711]
[1645312608681,0.00618883,2752.0,2751.7,6.54319711]
[1645312608886,0.00618883,2752.1,2751.8,1.5446675]
[1645312609079,0.00618883,2752.4,2752.0,4.99852961]
[1645312609383,0.00618883,2752.4,2752.1,1.5446675]
[1645312609779,0.00618883,2752.4,2752.0,4.99852961]
[1645312609980,0.00618883,2752.4,2752.1,1.54724382]
[1645312610678,0.91533883,2752.4,2752.1,0.00286728]
[1645312610879,0.91533883,2752.4,2752.0,4.99852961]
[1645312611129,0.91533883,2752.4,2752.1,1.54716866]
[1645312611328,0.91533883,2752.4,2752.1,0.00286726]
[1645312611531,0.91533883,2752.4,2752.1,1.54716611]
[1645312611730,0.91533883,2752.4,2752.1,0.00286726]
[1645312612129,0.91533883,2752.4,2752.0,4.99852961]
[1645312612332,0.91533883,2752.4,2752.1,0.00286726]
[1645312613333,0.91533883,2752.4,2752.0,4.99852961]
[1645312613532,0.91533883,2752.4,2752.1,0.00286724]
[1645312614438,0.91533883,2752.4,2752.0,4.99852961]
[1645312614893,0.91533883,2752.4,2752.1,0.00286724]
[1645312615385,0.91533883,2752.4,2752.2,4.99852961]
[1645312615783,0.91533883,2752.4,2751.7,2.34669156]
[1645312615984,0.91533883,2752.4,2752.2,0.00286722]
[1645312616586,0.91533883,2752.4,2752.2,1.54707066]
[1645312616789,0.90915,2752.4,2752.2,0.00286722]
[1645312616992,0.90915,2752.4,2752.1,1.54424148]
[1645312617184,0.90915,2752.4,2752.3,4.99852961]
[1645312617185,0.91533883,2752.4,2752.3,4.99852961]
[1645312617385,0.90915,2752.4,2752.3,4.99852961]
[1645312618086,0.90908,2752.6,2752.3,4.99852961]
[1645312618287,0.91813558,2752.6,2752.3,4.99852961]
[1645312618489,0.91813558,2752.6,2752.5,4.99852961]
[1645312618736,0.91194675,2752.6,2752.5,4.99852961]
[1645312619335,0.90908,2752.6,2752.2,0.90698245]
[1645312619541,0.91526883,2752.6,2752.3,0.00286727]
[1645312620139,0.91526883,2752.6,2752.3,0.00137745]
[1645312620637,0.91526883,2752.6,2752.1,1.54419312]
[1645312620838,0.91526883,2752.6,2752.0,4.99852961]
[1645312621039,4.41526883,2752.6,2752.0,4.99852961]
[1645312621243,5.01526883,2752.6,2752.0,4.99852961]
[1645312621439,2.81848,2752.5,2752.0,4.99852961]
[1645312621640,4.24975,2752.5,2752.0,4.99852961]
[1645312621839,0.3,2752.4,2752.0,4.99852961]
[1645312622043,0.60618883,2752.4,2752.1,0.00116734]
[1645312622238,0.90923,2752.3,2752.1,0.00116734]
[1645312622986,0.00618883,2752.4,2752.2,4.99852961]
[1645312623183,1.0,2752.5,2752.2,4.99852961]
[1645312623382,0.00618883,2752.5,2752.4,4.99852961]
[1645312623582,0.00308287,2752.6,2752.4,4.99852961]
[1645312624182,0.00618883,2752.8,2752.4,4.99852961]
[1645312624393,0.00308303,2752.6,2752.5,3.5]
[1645312624590,0.00308303,2752.6,2752.2,0.94296715]
[1645312624783,0.00308303,2752.6,2752.3,1.54403677]
[1645312625384,0.00618883,2753.1,2752.3,1.54403677]
[1645312625583,1.81201464,2753.1,2752.4,1.0]
[1645312625784,1.81820347,2753.1,2752.4,1.0]
[1645312626429,1.81820347,2753.1,2752.5,3.5]
[1645312626733,1.81820347,2753.1,2752.7,5.947223]
[1645312626928,1.81820347,2753.1,2752.7,0.94869339]
[1645312627134,1.81820347,2753.1,2752.7,5.947223]
[1645312627330,0.91512883,2753.1,2752.8,3.5]
[1645312627533,0.00618883,2753.1,2753.0,4.99852961]
[1645312627732,0.00618883,2753.4,2753.0,4.99852961]
[1645312627929,0.04035806,2753.1,2753.0,4.99852961]
[1645312628130,0.04227509,2753.1,2753.0,4.99852961]
[1645312628330,0.04227509,2753.1,2753.0,5.86028373]
[1645312628930,0.04035806,2753.1,2753.0,5.86028373]
[1645312630880,0.50682672,2753.5,2753.1,1.0]
[1645312631085,0.90884,2753.3,2752.7,1.236]
[1645312631280,0.90884,2753.3,2752.9,4.99852961]
[1645312631477,1.20884,2753.3,2752.9,4.99852961]
[1645312631677,1.20884,2753.3,2752.6,3.0058]
[1645312631882,2.58834893,2753.2,2752.6,3.0058]
[1645312632079,1.20811616,2753.3,2752.2,7.62942961]
[1645312632280,1.11117599,2752.7,2752.2,7.62942961]
[1645312632485,0.90922,2752.6,2752.2,4.99852961]
[1645312633735,0.90922,2752.6,2752.0,3.63819997]
[1645312633934,0.90922,2752.6,2752.3,0.00328048]
[1645312634835,0.90922,2752.6,2752.1,4.99852961]
[1645312635040,1.9073265,2752.6,2752.1,4.99852961]
[1645312635238,1.9073265,2752.6,2752.3,0.00328046]
[1645312635937,2.9073265,2752.6,2752.3,0.00328046]
[1645312636138,3.4293265,2752.6,2752.1,4.99852961]
[1645312636336,3.4293265,2752.6,2751.7,3.5]
[1645312636337,3.7293265,2752.6,2752.3,0.00328046]
[1645312636541,4.0293265,2752.6,2752.3,0.00328046]
[1645312636937,3.7293265,2752.6,2752.3,0.00328046]
[1645312637136,3.4293265,2752.6,2752.3,0.00328046]
[1645312637389,3.4293265,2752.6,2751.9,4.99852961]
[1645312637585,3.4293265,2752.6,2752.3,0.00328046]
[1645312637979,2.43122,2752.6,2752.3,0.00328046]
[1645312638188,0.522,2753.2,2752.5,4.99852961]
[1645312638380,7.32327924,2753.3,2752.5,4.99852961]
[1645312638580,7.32,2753.3,2752.1,4.6362]
[1645312638781,7.32327951,2753.3,2753.0,4.99852961]
[1645312639384,8.25313286,2753.3,2753.0,4.99852961]
[1645312639579,1.9089,2753.2,2753.0,4.99852961]
[1645312641728,0.9089,2753.2,2753.0,4.99852961]
[1645312642530,0.9089,2753.2,2752.6,4.99852961]
[1645312642731,0.9089,2753.2,2752.5,0.00328067]
[1645312642937,3.24916,2753.2,2752.5,0.00328067]
[1645312643130,0.90912,2752.9,2752.5,0.00328067]
[1645312643330,1.90912,2752.9,2752.3,4.99852961]
[1645312643732,1.05599535,2752.7,2752.5,0.0032805]
[1645312644334,0.90913,2752.6,2752.5,0.0032805]
[1645312644633,0.90913,2752.6,2752.3,4.99852961]
[1645312644880,0.90913,2752.6,2752.5,0.00328038]
[1645312645687,0.90913,2752.6,2752.3,4.99852961]
[1645312645886,0.90913,2752.6,2752.4,0.00328041]
[1645312646288,0.90913,2752.6,2752.5,4.99852961]
[1645312646685,0.90913,2752.6,2752.4,0.00328041]
[1645312646888,0.90913,2752.6,2752.3,4.99852961]
[1645312647290,0.90913,2752.6,2752.4,0.00328041]
[1645312648092,0.90913,2752.6,2752.3,4.99852961]
[1645312648291,1.50913,2752.6,2751.9,4.99852961]
[1645312648633,1.50913,2752.6,2752.4,0.00328043]
[1645312648634,0.522,2752.5,2752.4,0.00328043]
[1645312649433,1.43127,2752.5,2751.9,1.54437776]
[1645312649631,1.43127,2752.5,2751.9,6.54290737]
[1645312649632,0.9092,2752.3,2751.9,6.54290737]
[1645312649833,0.522,2752.2,2751.9,4.99852961]
[1645312650432,0.522,2752.2,2752.0,1.54436011]
[1645312650636,1.67958687,2752.2,2752.0,1.54436011]
[1645312650931,1.522,2752.2,2752.0,1.54436011]
[1645312651333,0.522,2752.2,2752.0,1.54344857]
[1645312651534,1.0,2752.2,2752.0,1.54344857]
[1645312651734,2.2092,2752.3,2751.6,3.5]
[1645312651735,1.0,2752.3,2752.1,4.99852961]
[1645312651934,1.43111,2752.5,2752.1,4.99852961]
[1645312652379,1.73111,2752.5,2752.1,4.99852961]
[1645312652983,0.95902909,2752.3,2752.1,4.99852961]
[1645312653188,0.95902909,2752.3,2752.2,0.00328053]
[1645312654183,0.95902909,2752.3,2752.1,4.99852961]
[1645312654382,0.95902909,2752.3,2752.1,5.00181017]
[1645312654584,1.0,2752.4,2752.2,3.5]
[1645312654783,7.32,2752.7,2752.4,1.64709094]
[1645312655085,7.32,2752.7,2752.5,8.49852961]
[1645312655282,7.32,2752.7,2752.5,4.99852961]
[1645312655687,7.32,2752.7,2752.5,8.49852961]
[1645312656329,7.32,2752.7,2752.5,4.99852961]
[1645312656929,7.32,2752.7,2752.5,5.00159102]
[1645312657735,8.22904,2752.7,2752.5,4.99852961]
[1645312657932,8.22904,2752.7,2752.5,5.00159102]
[1645312658732,8.22904,2752.7,2752.5,0.00306141]
[1645312658937,1.3,2752.6,2752.4,1.64709094]
[1645312659137,3.11838,2752.6,2752.5,0.00306141]
[1645312660183,3.11838,2752.6,2752.4,1.64709094]
[1645312660380,3.11838,2752.6,2752.4,1.65015238]
[1645312660582,0.90918,2752.5,2752.4,1.65015238]
[1645312661481,1.20918,2752.5,2752.4,1.64709094]
[1645312661681,1.29529616,2752.5,2752.4,1.64709094]
[1645312661881,1.73118,2752.5,2752.4,1.64709094]
[1645312662682,1.81729616,2752.5,2752.4,1.64709094]
[1645312663931,1.80781659,2752.5,2752.4,1.64709094]
[1645312664933,1.72170043,2752.5,2752.4,1.64709094]
[1645312666436,1.80781659,2752.5,2752.4,1.64709094]
[1645312668285,1.72170043,2752.5,2752.4,1.64709094]
[1645312669284,1.80781659,2752.5,2752.4,1.64709094]
[1645312671534,1.75781659,2752.5,2752.4,1.64709094]
[1645312674038,1.14970043,2752.5,2752.4,1.64709094]
[1645312674236,7.32,2752.7,2752.4,5.14709094]
[1645312674633,7.32,2752.7,2752.6,4.99852961]
[1645312675284,7.32,2752.7,2752.6,6.54269667]
[1645312675681,8.32,2752.7,2752.6,6.54269667]
[1645312678080,8.32,2752.7,2752.6,1.54416706]
[1645312678280,8.32,2752.7,2752.6,4.99852961]
[1645312678735,7.32,2752.7,2752.6,4.99852961]
[1645312678934,7.32,2752.7,2752.6,6.54263083]
[1645312679136,1.40738,2753.1,2752.6,6.54263083]
[1645312679338,1.40738,2753.1,2752.5,3.50297753]
[1645312679339,1.40738,2753.1,2752.8,4.99852961]
[1645312679934,0.90898,2753.1,2752.5,8.50150714]
[1645312680136,0.90898,2753.1,2752.6,1.54396707]
[1645312680538,0.90898,2753.1,2752.7,4.99852961]
[1645312680735,0.90898,2753.1,2752.8,1.54396707]
[1645312682483,0.90898,2753.1,2752.7,4.99852961]
[1645312682681,0.99509616,2753.1,2752.7,4.99852961]
[1645312683485,0.99509616,2753.1,2752.5,0.00285845]
[1645312683486,1.81828,2752.9,2752.5,5.00138806]
[1645312683885,3.42639616,2752.9,2752.5,5.00138806]
[1645312684285,3.42639616,2752.9,2752.5,4.99852961]
[1645312684489,3.42639616,2752.9,2752.5,5.00138794]
[1645312684687,3.72639616,2752.9,2752.5,5.00138794]
[1645312684886,1.01775639,2752.8,2752.5,0.00285833]
[1645312685188,0.90918,2752.7,2752.5,0.00285833]
[1645312685389,0.99529616,2752.7,2752.4,1.64709094]
[1645312685786,0.99529616,2752.7,2752.5,0.00286407]
[1645312686442,0.99433575,2752.7,2752.5,0.00286407]
[1645312686643,0.90914,2752.6,2752.4,1.64709094]
[1645312686843,0.90914,2752.6,2752.5,0.00287036]
[1645312687644,0.90914,2752.6,2752.5,5.00139997]
[1645312687845,0.08611616,2752.7,2752.5,1.54414821]
[1645312688044,2.83604639,2752.8,2752.5,1.54414821]
[1645312688250,0.3,2752.6,2752.4,1.64996132]
[1645312689045,0.3,2752.6,2752.4,1.64709094]
[1645312689345,0.3,2752.6,2752.4,1.64996075]
[1645312689551,1.2091,2752.6,2752.4,1.64996075]
[1645312690185,1.2091,2752.6,2752.4,1.64709094]
[1645312690386,1.2091,2752.6,2752.4,1.64996013]
[1645312690786,0.9091,2752.6,2752.5,4.99852961]
[1645312690987,0.9091,2752.6,2752.5,6.54271738]
[1645312691997,0.9091,2752.6,2752.5,4.99852961]
[1645312692388,0.9091,2752.6,2752.4,1.64996011]
[1645312692589,0.9091,2752.6,2752.4,1.64709094]
[1645312692790,0.9091,2752.6,2752.4,1.64996017]
[1645312693837,0.9091,2752.6,2752.4,1.64709094]
[1645312694037,0.9091,2752.6,2752.4,1.64996025]
[1645312694434,0.9091,2752.6,2752.5,1.54417222]
[1645312694633,0.9091,2752.6,2752.4,1.64996025]
[1645312694840,0.9091,2752.6,2752.5,1.54417889]
[1645312695035,0.9091,2752.6,2752.4,1.64709094]
[1645312695235,0.9091,2752.6,2752.4,1.64996025]
[1645312696236,0.9091,2752.6,2752.4,1.64709094]
[1645312696435,0.9091,2752.6,2752.4,1.64996025]
[1645312697493,0.9091,2752.6,2752.4,1.64709094]
[1645312697692,0.9091,2752.6,2752.4,1.64996024]
[1645312698690,0.9091,2752.6,2752.4,1.64709094]
[1645312698889,0.9091,2752.6,2752.4,1.64996024]
[1645312699896,1.2091,2752.6,2752.4,1.64709094]
[1645312700100,1.2091,2752.6,2752.4,1.64996025]
[1645312701142,0.9091,2752.6,2752.4,1.64996025]
[1645312702144,0.9091,2752.6,2752.4,1.64709094]
[1645312702345,0.9091,2752.6,2752.5,1.54419649]
[1645312707997,0.9091,2752.6,2752.5,1.54317854]
[1645312715694,1.82444789,2752.8,2752.5,1.54317854]
[1645312715894,2.82444789,2752.8,2752.5,1.54317854]
[1645312716943,2.82444789,2752.8,2752.5,1.54604778]
[1645312717740,2.82444789,2752.8,2752.5,1.54317854]
[1645312718144,2.82444789,2752.8,2752.5,1.54604778]
[1645312718352,0.00615789,2752.8,2752.7,4.99852961]
[1645312718543,0.00615789,2753.0,2752.7,4.99852961]
[1645312718743,0.00615789,2753.1,2752.9,4.99852961]
[1645312718943,7.32286838,2753.3,2752.9,4.99852961]
[1645312718944,0.00615789,2753.2,2752.9,4.99852961]
[1645312719141,7.32,2753.3,2752.9,4.99852961]
[1645312719142,7.32615789,2753.3,2752.9,4.99852961]
[1645312719344,1.05603104,2753.2,2752.9,4.99852961]
[1645312719741,1.05603104,2753.2,2752.5,3.68446946]
[1645312719742,7.32902648,2753.3,2753.1,4.99852961]
[1645312719994,7.32286859,2753.3,2753.1,4.99852961]
[1645312720195,7.32,2753.3,2753.1,4.99852961]
[1645312720591,7.32286872,2753.3,2753.1,4.99852961]
[1645312720809,7.32286872,2753.3,2752.9,4.99852961]
[1645312720990,0.91506789,2753.2,2752.9,4.99852961]
[1645312721191,0.90891,2753.2,2752.9,4.99852961]
[1645312721992,0.90891,2753.2,2753.0,3.5]
[1645312722194,0.00615789,2753.1,2752.7,3.5]
[1645312722395,7.32286861,2753.3,2752.7,3.5]
[1645312722396,0.00615789,2753.2,2752.7,3.5]
[1645312722592,0.00615789,2753.2,2753.1,4.99852961]
[1645312722793,7.32,2753.3,2753.1,4.99852961]
[1645312722993,7.32286851,2753.3,2753.1,4.99852961]
[1645312723847,7.32,2753.3,2753.1,4.99852961]
[1645312724048,7.3228687,2753.3,2753.1,4.99852961]
[1645312725047,7.32,2753.3,2753.1,4.99852961]
[1645312725248,7.3228687,2753.3,2753.1,4.99852961]
[1645312725952,0.90895,2753.1,2752.9,4.99852961]
[1645312726155,0.90895,2753.1,2752.6,1.2215]
[1645312726156,1.50895,2753.1,2752.6,1.2215]
[1645312726348,0.00615789,2753.0,2752.5,4.99852961]
[1645312726549,0.61427405,2753.0,2752.5,5.00139905]
[1645312726748,0.08611616,2752.9,2752.5,5.00139905]
[1645312727397,0.90916,2752.8,2752.5,4.99852961]
[1645312727788,0.90916,2752.8,2752.5,5.00139886]
[1645312727789,1.90916,2752.8,2752.5,5.00139886]
[1645312727990,1.90916,2752.8,2752.6,1.54409015]
[1645312728190,0.90195467,2752.7,2752.6,1.54409015]
[1645312730196,0.90195467,2752.7,2752.6,1.54266912]